bitfinex-derivatives/quotes_SOLF0:USTF0_20251216
["timestamp","ask_amount","ask_price","bid_price","bid_amount"]
[1765897392736,0.05317316,127.94,127.91,8.9575]
[1765897393028,0.05317316,127.94,127.91,1.92]
[1765897393232,3.23,127.93,127.83,111.4572]
[1765897393436,0.05405324,127.89,127.83,1.92]
[1765897393827,0.05405324,127.89,127.85,1.92]
[1765897394334,0.05405324,127.89,127.87,1.87560826]
[1765897394543,3.28405324,127.89,127.87,1.87560826]
[1765897394724,10.2703,127.87,127.82,1.92]
[1765897394928,0.05603914,127.86,127.85,1.87479984]
[1765897395739,3.28603914,127.86,127.84,1.87479984]
[1765897396134,0.05603914,127.86,127.84,1.87479984]
[1765897396437,3.28603914,127.86,127.84,1.87479984]
[1765897396642,0.05603914,127.86,127.84,1.87479984]
[1765897397441,0.05603914,127.86,127.83,1.87479984]
[1765897397638,0.05603914,127.86,127.83,3.79479984]
[1765897397839,0.05603914,127.86,127.84,1.87479984]
[1765897398450,0.05603914,127.86,127.85,1.87479984]
[1765897398643,66.34,127.88,127.86,1.87]
[1765897398838,66.36,127.92,127.86,1.87]
[1765897399042,66.36,127.92,127.89,1.87]
[1765897399243,69.59,127.96,127.9,3.7457359]
[1765897399436,3.23,127.95,127.92,1.8757359]
[1765897399643,3.23,127.95,127.91,1.8757359]
[1765897399840,3.28203844,127.95,127.92,0.05603914]
[1765897400449,0.05203844,127.95,127.92,0.05603914]
[1765897400748,0.05203844,127.95,127.92,1.92603914]
[1765897400941,3.28203844,127.95,127.92,0.05603914]
[1765897401137,0.05203844,127.95,127.92,0.05603914]
[1765897402646,0.05203844,127.95,127.93,3.75461034]
[1765897402851,0.05203844,127.95,127.92,0.05603914]
[1765897403040,0.05203844,127.95,127.94,1.88316056]
[1765897403241,0.05203844,127.95,127.93,1.88316056]
[1765897403442,0.05203844,127.95,127.93,1.88744744]
[1765897403646,3.28203844,127.95,127.93,1.88744744]
[1765897403853,69.66203844,127.95,127.92,0.05603914]
[1765897404048,3.23,127.94,127.92,0.05603914]
[1765897404349,66.43203844,127.95,127.92,0.05603914]
[1765897405243,66.43203844,127.95,127.93,1.88930508]
[1765897405438,66.43203844,127.95,127.93,3.75930508]
[1765897405644,66.43203844,127.95,127.94,1.88930508]
[1765897405845,66.43203844,127.95,127.93,1.87]
[1765897406150,66.43203844,127.95,127.94,1.89089881]
[1765897406648,69.66203844,127.95,127.92,0.05603914]
[1765897406849,3.23,127.94,127.92,0.05603914]
[1765897407256,66.43203844,127.95,127.92,0.05603914]
[1765897407649,3.23,127.94,127.92,0.05603914]
[1765897407846,112.6808,127.94,127.86,1.87]
[1765897408051,3.23,127.93,127.9,1.89677521]
[1765897408752,10.2668,127.93,127.9,1.89677521]
[1765897408943,3.23,127.92,127.9,1.89677521]
[1765897409144,3.23,127.9,127.85,7.0407]
[1765897409356,0.05785967,127.89,127.88,1.90104167]
[1765897409543,0.05785967,127.89,127.86,8.9102]
[1765897409950,0.05785967,127.89,127.87,1.87]
[1765897410154,0.05785967,127.89,127.88,1.90062747]
[1765897410348,0.05785967,127.89,127.84,8.9113]
[1765897410553,3.28785967,127.89,127.87,1.90234649]
[1765897410749,3.28785967,127.89,127.84,1.87]
[1765897410950,0.05785967,127.89,127.86,1.90318426]
[1765897411156,0.05785967,127.89,127.87,1.90318426]
[1765897411355,0.05785967,127.89,127.85,8.9107]
[1765897411557,0.05785967,127.89,127.87,1.90344485]
[1765897411763,0.05785967,127.89,127.88,1.90344485]
[1765897411961,0.05785967,127.89,127.86,1.87]
[1765897412260,5.78086665,127.98,127.92,111.2768]
[1765897412450,3.23,128.0,127.93,1.90186222]
[1765897412650,69.61,128.01,127.96,8.93666222]
[1765897412858,3.23,128.0,127.97,1.90186222]
[1765897413057,3.23,128.0,127.93,1.81]
[1765897413255,10.32134956,127.98,127.96,1.90039661]
[1765897413458,3.23,127.97,127.95,0.05785967]
[1765897413853,69.63,127.96,127.95,0.05785967]
[1765897414452,69.63,127.96,127.89,1.81]
[1765897414453,76.6652,127.96,127.89,8.8486]
[1765897414663,3.25,127.95,127.93,1.90578675]
[1765897415165,66.38,127.96,127.93,1.90578675]
[1765897415351,69.67978679,127.96,127.93,1.90578675]
[1765897415556,75.46065344,127.96,127.93,1.90578675]
[1765897415757,69.67978679,127.96,127.93,1.90578675]
[1765897416362,66.42978679,127.96,127.93,1.90578675]
[1765897416568,72.21065344,127.96,127.93,1.90578675]
[1765897417065,72.21065344,127.96,127.93,3.71578675]
[1765897417259,69.67978679,127.96,127.95,1.90971356]
[1765897417460,112.7042,127.94,127.86,3.22]
[1765897417661,0.05730929,127.91,127.86,3.22]
[1765897418167,0.05730929,127.91,127.86,112.7361]
[1765897418360,0.05730929,127.91,127.9,1.91330597]
[1765897418561,0.05730929,127.91,127.89,10.2587]
[1765897418764,0.05730929,127.91,127.9,3.22]
[1765897419169,66.38,127.95,127.92,3.22]
[1765897419368,5.83330273,127.97,127.94,1.91313953]
[1765897419663,14.91819783,127.99,127.95,1.91313953]
[1765897419664,77.46977995,127.99,127.95,1.91313953]
[1765897419968,5.83806244,127.98,127.94,3.22]
[1765897420166,12.87206244,127.98,127.94,3.22]
[1765897420367,5.8907122,127.97,127.95,1.96813524]
[1765897420563,0.05264976,127.97,127.95,0.05409154]
[1765897421169,9.09174754,127.96,127.95,0.05409154]
[1765897422360,7.037,127.93,127.87,3.22]
[1765897422567,9.09174754,127.92,127.9,1.919125]
[1765897423071,5.84174754,127.92,127.9,1.919125]
[1765897423261,5.89474959,127.92,127.9,1.919125]
[1765897423566,0.05300205,127.92,127.9,1.919125]
[1765897423766,5.85944149,127.91,127.87,3.22]
[1765897424070,5.85944149,127.91,127.89,1.92166596]
[1765897424670,12.89734149,127.91,127.89,1.92166596]
[1765897424871,16.14734149,127.91,127.89,1.92166596]
[1765897425074,5.86465856,127.9,127.88,1.92166596]
[1765897425461,10.2879,127.91,127.88,1.92166596]
[1765897425667,3.25,127.9,127.88,1.92166596]
[1765897425963,3.25,127.89,127.88,1.92166596]
[1765897426168,75.49518074,127.89,127.84,10.2612]
[1765897426364,0.04984653,127.88,127.86,1.92373153]
[1765897427073,0.04984653,127.88,127.87,1.92373153]
[1765897427367,5.91547621,127.88,127.82,7.0422]
[1765897427672,9.16547621,127.88,127.85,1.92422077]
[1765897427971,5.91547621,127.88,127.85,1.92422077]
[1765897428169,5.91547621,127.88,127.86,1.92422077]
[1765897428367,0.04984653,127.88,127.85,3.22]
[1765897428561,0.04984653,127.88,127.81,109.5575]
[1765897428562,0.04984653,127.88,127.86,5.14436074]
[1765897428762,0.04984653,127.88,127.87,5.14436074]
[1765897429065,0.04984653,127.88,127.84,109.5334]
[1765897429066,0.04984653,127.88,127.84,3.22]
[1765897429262,0.04984653,127.88,127.87,1.92367617]
[1765897429661,0.04984653,127.88,127.86,1.92367617]
[1765897429880,3.29984653,127.88,127.86,1.92367617]
[1765897430065,3.29984653,127.88,127.81,3.22]
[1765897430370,10.33924653,127.88,127.85,1.92554668]
[1765897430575,3.25,127.87,127.85,1.92554668]
[1765897430872,0.04984653,127.88,127.85,1.92554668]
[1765897431466,0.04984653,127.88,127.86,1.92554668]
[1765897431772,0.04984653,127.88,127.85,7.0409]
[1765897431773,0.04984653,127.88,127.87,1.92554668]
[1765897433472,7.08924653,127.88,127.86,1.92554668]
[1765897434069,7.0399,127.87,127.85,1.92554668]
[1765897434272,76.6899,127.87,127.85,1.92554668]
[1765897435578,73.4399,127.87,127.85,1.92554668]
[1765897435777,7.0417,127.84,127.78,3.22]
[1765897435982,0.05920797,127.82,127.78,3.22]
[1765897437669,0.05920797,127.82,127.8,3.22]
[1765897437869,0.05920797,127.82,127.78,3.22]
[1765897438074,3.30920797,127.82,127.81,1.93067459]
[1765897438278,3.25,127.81,127.77,3.13226419]
[1765897438580,10.2945,127.79,127.77,3.13226419]
[1765897438782,10.35257083,127.79,127.77,3.13226419]
[1765897439188,66.4,127.78,127.77,3.13226419]
[1765897439376,69.65,127.78,127.77,3.13226419]
[1765897439571,69.65,127.78,127.72,3.22]
[1765897439787,0.05082805,127.76,127.74,1.92922409]
[1765897440374,3.30082805,127.76,127.73,1.92922409]
[1765897440882,3.25,127.74,127.73,1.92922409]
[1765897441082,69.67,127.74,127.66,3.22]
[1765897441383,3.30704415,127.71,127.69,1.92934062]
[1765897441586,0.05704415,127.71,127.7,3.22]
[1765897441787,69.67,127.77,127.7,3.22]
[1765897441990,69.67,127.77,127.73,1.92810612]
[1765897442289,69.67,127.77,127.7,112.8709]
[1765897442473,66.42,127.77,127.73,5.14471176]
[1765897442677,66.42,127.77,127.74,5.14471176]
[1765897442878,119.99875233,127.87,127.76,3.22]
[1765897443179,3.25,127.84,127.8,1.92471176]
[1765897443382,10.2924,127.83,127.76,10.2656]
[1765897443579,5.87313335,127.87,127.8,112.6693]
[1765897443780,123.63683577,127.91,127.8,112.6693]
[1765897443781,28.76708003,127.93,127.85,1.92258228]
[1765897443990,0.05037595,127.9,127.88,0.05438031]
[1765897444383,3.07,127.96,127.89,112.5901]
[1765897444689,5.87313335,128.0,127.96,3.1]
[1765897444883,69.51,128.02,127.98,1.91688972]
[1765897445078,3.07,128.01,127.92,112.5633]
[1765897445280,125.24834668,128.01,127.92,3.1]
[1765897445490,0.05910033,127.98,127.95,3.14997292]
[1765897446288,0.05910033,127.98,127.96,1.91586361]
[1765897446494,3.12910033,127.98,127.95,0.04997292]
[1765897446790,0.05910033,127.98,127.95,0.04997292]
[1765897448082,3.12910033,127.98,127.95,0.04997292]
[1765897448293,3.07,127.96,127.95,0.04997292]
[1765897448483,66.42,127.97,127.95,0.04997292]
[1765897448997,66.42,127.97,127.96,1.91600174]
[1765897449496,66.42,127.97,127.95,0.04997292]
[1765897451190,66.42,127.97,127.96,5.01580426]
[1765897451392,66.42,127.97,127.96,3.1]
[1765897451593,0.05910033,127.98,127.96,3.1]
[1765897451794,0.05910033,127.98,127.97,1.91599356]
[1765897452395,0.05910033,127.98,127.96,1.91599356]
[1765897452592,0.05910033,127.98,127.97,1.91599356]
[1765897452794,0.05910033,127.98,127.95,0.04997292]
[1765897452997,0.05910033,127.98,127.97,1.91534608]
[1765897453399,3.12910033,127.98,127.95,0.04997292]
[1765897454692,0.05910033,127.98,127.96,1.91506883]
[1765897455098,3.12910033,127.98,127.95,0.04997292]
[1765897455299,0.05910033,127.98,127.95,0.04997292]
[1765897455490,3.12910033,127.98,127.95,0.04997292]
[1765897455807,69.45,127.97,127.95,0.04997292]
[1765897456389,66.38,127.97,127.95,0.04997292]
[1765897456591,3.07,127.96,127.95,0.04997292]
[1765897456794,66.38,127.97,127.95,0.04997292]
[1765897457201,66.38,127.97,127.96,1.91458846]
[1765897457805,66.38,127.97,127.96,5.01458846]
[1765897458002,0.05910033,127.98,127.96,3.1]
[1765897458305,0.05910033,127.98,127.97,1.91342463]
[1765897458487,66.38,128.01,127.97,3.1]
[1765897458692,7.0302,128.05,127.99,1.91245215]
[1765897458999,69.45,128.06,128.01,5.01245215]
[1765897459300,66.38,128.06,128.04,1.91245215]
[1765897459499,66.38,128.06,128.01,3.1]
[1765897459696,0.05451674,128.05,128.04,1.9100737]
[1765897461902,3.12451674,128.05,128.02,0.05274022]
[1765897462302,0.05451674,128.05,128.03,1.90650448]
[1765897462491,0.05451674,128.05,128.04,5.00650448]
[1765897462805,12.76549858,128.13,128.05,3.1]
[1765897462992,135.23394157,128.18,128.08,5.00419274]
[1765897463197,135.23394157,128.18,128.09,1.90419274]
[1765897463198,178.684,128.17,128.09,1.90419274]
[1765897463397,178.684,128.17,128.1,1.90419274]
[1765897463703,112.3365,128.16,128.08,3.1]
[1765897463906,112.3365,128.16,128.11,0.05320787]
[1765897463907,0.04947075,128.13,128.11,0.05320787]
[1765897464098,73.43547075,128.13,128.11,0.05320787]
[1765897464405,66.40947075,128.13,128.11,0.05320787]
[1765897464999,0.04947075,128.13,128.11,3.15320787]
[1765897465205,10.0927,128.19,128.12,4.99764308]
[1765897465392,10.0927,128.19,128.15,1.89764308]
[1765897465598,10.0927,128.19,128.12,3.1]
[1765897465799,3.07,128.17,128.14,1.893129]
[1765897466103,178.6665,128.2,128.11,3.1]
[1765897466407,0.04993771,128.17,128.14,1.94847348]
[1765897466605,0.04993771,128.17,128.14,0.0549364]
[1765897466809,0.04993771,128.17,128.14,1.945735]
[1765897467110,10.14363771,128.17,128.14,0.0549364]
[1765897467411,10.14363771,128.17,128.14,1.94591491]
[1765897467607,10.14363771,128.17,128.14,0.0549364]
[1765897467797,10.14363771,128.17,128.14,1.94339566]
[1765897468005,0.04993771,128.17,128.14,0.0549364]
[1765897468310,0.04993771,128.17,128.14,1.94291107]
[1765897468508,3.11993771,128.17,128.14,0.0549364]
[1765897468706,69.41,128.16,128.14,0.0549364]
[1765897469206,76.4342,128.16,128.14,0.0549364]
[1765897469406,66.34,128.16,128.14,0.0549364]
[1765897471311,69.41,128.16,128.14,0.0549364]
[1765897471512,112.342,128.15,128.07,3.1]
[1765897471711,112.342,128.15,128.05,109.3505]
[1765897471712,3.07,128.15,128.1,4.98142672]
[1765897471908,3.07,128.15,128.11,1.88142672]
[1765897472108,3.07,128.14,128.07,3.1]
[1765897472308,3.07,128.14,128.1,1.88122208]
[1765897472615,0.05137887,128.13,128.11,0.05422204]
[1765897472814,3.07,128.11,128.04,3.1]
[1765897473018,3.07,128.11,128.08,1.88197853]
[1765897473903,10.14806337,128.11,128.08,1.9342258]
[1765897474121,3.21,128.1,128.08,0.05224727]
[1765897474608,3.21,128.09,128.01,10.3118]
[1765897474816,69.51,128.08,128.04,1.88337742]
[1765897475014,3.21,128.07,128.03,1.88337742]
[1765897475412,3.21,128.07,128.04,1.88337742]
[1765897475615,3.26926578,128.07,128.05,1.88337742]
[1765897476108,3.26926578,128.07,128.04,0.04974715]
[1765897477314,3.21,128.04,127.97,3.28]
[1765897477517,3.21,128.02,128.0,1.88664963]
[1765897477914,10.2418,128.02,127.96,7.0348]
[1765897478115,3.21,128.02,127.99,1.88750746]
[1765897478520,0.05868975,128.02,127.99,5.22005447]
[1765897478815,0.05868975,128.02,128.01,1.88750746]
[1765897479120,0.05868975,128.02,127.99,3.33254701]
[1765897479312,0.05868975,128.02,128.01,5.16689172]
[1765897479505,0.05868975,128.02,128.0,10.3126]
[1765897479706,0.05868975,128.02,128.01,1.88758946]
[1765897480824,0.05868975,128.02,128.01,5.16758946]
[1765897481115,69.53,128.06,128.01,3.28]
[1765897481320,66.32,128.06,128.03,1.88752457]
[1765897481709,66.32,128.06,128.04,1.88752457]
[1765897481909,69.58873765,128.06,128.04,0.04954488]
[1765897482319,66.37873765,128.06,128.04,0.04954488]
[1765897483915,69.58873765,128.06,128.04,0.04954488]
[1765897485719,3.21,128.05,128.04,0.04954488]
[1765897485924,3.21,128.05,127.95,3.28]
[1765897486222,3.21,128.02,127.99,1.89602903]
[1765897486407,69.53,128.01,127.99,1.89602903]
[1765897486718,3.21,127.99,127.92,3.28]
[1765897486923,0.05966772,127.97,127.95,1.90293346]
[1765897487120,3.21,127.96,127.94,0.05022761]
[1765897487614,69.58966772,127.97,127.95,1.90786368]
[1765897487814,66.37966772,127.97,127.95,1.90774745]
[1765897488527,66.37966772,127.97,127.96,1.90774745]
[1765897488717,66.37966772,127.97,127.95,3.28]
[1765897488926,66.37966772,127.97,127.95,10.3154]
[1765897489120,66.37966772,127.97,127.96,3.28]
[1765897489923,66.37966772,127.97,127.95,7.0354]
[1765897490426,69.58966772,127.97,127.94,0.05022761]
[1765897490725,66.37966772,127.97,127.95,1.91365498]
[1765897490924,66.37966772,127.97,127.96,1.91365498]
[1765897491122,66.37966772,127.97,127.94,7.08612761]
[1765897491324,66.37966772,127.97,127.96,1.91327913]
[1765897493023,3.21,127.96,127.94,0.05022761]
[1765897493226,69.58966772,127.97,127.95,1.91391155]
[1765897494329,0.05966772,127.97,127.95,1.91391155]
[1765897494720,0.05966772,127.97,127.96,1.91391155]
[1765897494923,0.05966772,127.97,127.94,0.05022761]
[1765897495122,0.05966772,127.97,127.96,1.91316477]
[1765897495445,0.05966772,127.97,127.94,0.05022761]
[1765897495622,0.05966772,127.97,127.95,8.94876337]
[1765897495821,0.05966772,127.97,127.96,1.91336337]
[1765897496023,0.05966772,127.97,127.94,0.05022761]
[1765897496227,0.05966772,127.97,127.96,1.91310261]
[1765897498230,0.05966772,127.97,127.95,10.3154]
[1765897499241,0.05966772,127.97,127.96,1.9131652]
[1765897499533,0.05966772,127.97,127.96,1.91337254]
[1765897500241,7.85395535,128.05,128.0,3.28]
[1765897500537,3.21,128.07,128.03,1.91047627]
[1765897500837,3.21,128.04,127.96,3.28]
[1765897501025,10.2417,128.02,127.98,5.1916499]
[1765897501228,0.05540639,128.01,127.99,3.33602993]
[1765897501427,0.05434982,128.01,127.99,3.33602993]
[1765897501629,0.05434982,128.01,128.0,10.3127]
[1765897501932,3.21,128.07,128.0,112.6764]
[1765897502133,3.21,128.06,128.02,1.90995537]
[1765897502327,10.2397,128.06,128.01,8.94195537]
[1765897502632,3.21,128.05,128.02,1.90995537]
[1765897502827,10.2401,128.05,128.02,1.90995537]
[1765897503025,3.26421335,128.05,128.02,1.96759917]
[1765897503225,3.26421335,128.05,128.03,1.91043595]
[1765897503226,0.05421335,128.05,128.03,1.91043595]
[1765897503530,0.05421335,128.05,128.03,8.94123595]
[1765897503728,0.05421335,128.05,128.03,10.3808]
[1765897503934,0.05421335,128.05,128.04,5.26008741]
[1765897504131,0.05421335,128.05,128.04,3.35]
[1765897504328,3.27421335,128.05,128.02,0.0576438]
[1765897505037,10.30431335,128.05,128.02,0.0576438]
[1765897505539,0.05421335,128.05,128.03,5.26070224]
[1765897505841,0.05421335,128.05,128.04,1.91021233]
[1765897506743,3.27421335,128.05,128.02,0.0576438]
[1765897506942,0.05421335,128.05,128.03,5.26094489]
[1765897507141,0.05421335,128.05,128.04,5.26094489]
[1765897507435,0.05421335,128.05,128.04,3.35]
[1765897508246,3.27421335,128.05,128.02,0.0576438]
[1765897508537,7.0323,128.01,127.94,3.35]
[1765897508740,10.2523,128.01,127.99,1.91397863]
[1765897508944,18.10675535,128.0,127.94,10.3857]
[1765897509134,18.10675535,128.0,127.96,1.91533133]
[1765897509440,0.05267575,127.99,127.97,1.96951164]
[1765897509644,0.05267575,127.99,127.97,0.05418031]
[1765897509843,3.27267575,127.99,127.97,0.05418031]
[1765897510336,3.22,127.98,127.97,0.05418031]
[1765897510733,69.56,127.98,127.91,7.0375]
[1765897510933,3.22,127.96,127.94,1.9181826]
[1765897511130,3.22,127.95,127.93,1.9181826]
[1765897511334,3.22,127.95,127.88,112.8492]
[1765897511533,11.07395535,127.97,127.91,1.92044055]
[1765897511741,3.22,127.93,127.84,3.35]
[1765897511938,0.04924396,127.9,127.89,1.92134191]
[1765897512142,0.04924396,127.9,127.88,0.05822439]
[1765897512143,3.22,127.9,127.88,0.05822439]
[1765897512344,3.27589682,127.9,127.88,0.05822439]
[1765897513433,0.05589682,127.9,127.88,0.05822439]
[1765897513640,0.05589682,127.9,127.88,3.40822439]
[1765897513950,0.05589682,127.9,127.89,1.92069024]
[1765897514130,0.05589682,127.9,127.88,0.05822439]
[1765897514337,0.05589682,127.9,127.89,1.92002586]
[1765897514833,0.05589682,127.9,127.89,3.35]
[1765897515240,0.05589682,127.9,127.88,0.05822439]
[1765897515442,0.05589682,127.9,127.89,1.9221979]
[1765897516644,0.05589682,127.9,127.89,5.2721979]
[1765897516841,0.05589682,127.9,127.89,3.35]
[1765897517041,0.05589682,127.9,127.88,0.05822439]
[1765897517244,0.05589682,127.9,127.89,1.92267357]
[1765897518741,0.05589682,127.9,127.88,0.05822439]
[1765897518942,3.27589682,127.9,127.88,0.05822439]
[1765897519147,0.05589682,127.9,127.88,0.05822439]
[1765897519740,0.05589682,127.9,127.89,1.92513606]
[1765897520743,3.27589682,127.9,127.88,0.05822439]
[1765897520938,11.14022677,127.9,127.88,0.05822439]
[1765897522147,11.14022677,127.9,127.78,112.9338]
[1765897522148,3.22,127.88,127.78,112.9338]
[1765897522340,109.5006,127.89,127.83,1.92590855]
[1765897522341,77.46432995,127.87,127.83,1.92590855]
[1765897522541,74.24432995,127.87,127.83,1.92590855]
[1765897522849,66.38,127.87,127.84,1.92590855]
[1765897523044,66.43488051,127.87,127.85,1.92590855]
[1765897523243,69.65488051,127.87,127.84,0.05298984]
[1765897523948,3.22,127.86,127.84,0.05298984]
[1765897524445,74.29921046,127.87,127.84,0.05298984]
[1765897524446,69.65488051,127.87,127.84,0.05298984]
[1765897524948,3.22,127.86,127.84,0.05298984]
[1765897526051,3.22,127.86,127.79,112.9285]
[1765897526246,3.22,127.85,127.82,1.92239037]
[1765897526452,7.86432995,127.88,127.83,3.35]
[1765897526650,66.4,127.88,127.84,5.27168605]
[1765897526952,66.4,127.88,127.87,5.27168605]
[1765897527253,0.05148768,127.89,127.83,3.35]
[1765897527442,3.27148768,127.89,127.86,1.92066197]
[1765897527641,3.27148768,127.89,127.8,109.5645]
[1765897527642,3.27593858,127.89,127.81,3.35]
[1765897527851,0.0565427,127.86,127.84,12.31325559]
[1765897528056,0.0565427,127.86,127.85,1.921547]
[1765897529745,0.0565427,127.86,127.84,1.921547]
[1765897530254,3.2765427,127.86,127.8,7.0435]
[1765897530450,3.2765427,127.86,127.82,1.92268285]
[1765897530651,3.22,127.84,127.81,1.92268285]
[1765897530851,0.05019749,127.85,127.81,5.27268285]
[1765897531051,0.05019749,127.85,127.82,1.92268285]
[1765897532156,0.05019749,127.85,127.82,5.27268285]
[1765897532453,0.05019749,127.85,127.84,1.92268285]
[1765897532640,0.05019749,127.85,127.83,10.392]
[1765897532844,0.05019749,127.85,127.84,5.27091961]
[1765897533045,0.05019749,127.85,127.84,3.35]
[1765897533849,0.05019749,127.85,127.83,10.242]
[1765897534753,0.05019749,127.85,127.84,1.92032359]
[1765897534959,0.05019749,127.85,127.82,7.0425]
[1765897535258,0.05019749,127.85,127.83,1.92116786]
[1765897536956,0.05019749,127.85,127.83,12.31316786]
[1765897537154,0.05019749,127.85,127.79,112.9258]
[1765897537356,0.05019749,127.85,127.83,1.91990093]
[1765897537860,3.39019749,127.85,127.83,1.91990093]
[1765897538064,0.05019749,127.85,127.82,1.91990093]
[1765897538258,0.05019749,127.85,127.83,1.91990093]
[1765897538558,0.05019749,127.85,127.83,5.26990093]
[1765897538759,0.05019749,127.85,127.83,10.3921]
[1765897538958,0.05019749,127.85,127.84,5.26900147]
[1765897539263,0.05019749,127.85,127.84,3.35]
[1765897539457,0.00019749,127.85,127.84,3.35]
[1765897539759,0.00019749,127.85,127.84,4.91]
[1765897540155,66.42,127.9,127.89,10.3888]
[1765897540361,123.10520226,127.98,127.9,3.35]
[1765897540362,3.34,127.97,127.9,3.35]
[1765897540655,103.00227231,128.0,127.93,10.3865]
[1765897540855,69.76,127.98,127.93,12.30250312]
[1765897541164,0.0546161,127.97,127.96,1.91600312]
[1765897541461,0.0546161,127.97,127.95,3.35]
[1765897541962,74.28432995,128.05,127.98,3.35]
[1765897542151,77.62432995,128.05,128.0,1.91102573]
[1765897542351,3.34,128.04,128.0,1.91102573]
[1765897542547,3.34,128.04,127.95,3.35]
[1765897542858,0.05895413,128.01,127.98,1.96810168]
[1765897543056,3.39895413,128.01,127.98,0.0563515]
[1765897543354,3.39895413,128.01,127.98,1.96855636]
[1765897543549,3.34,128.0,127.98,0.0563515]
[1765897543754,10.43135413,128.01,127.98,0.0563515]
[1765897544157,3.39895413,128.01,127.98,0.0563515]
[1765897544661,0.05895413,128.01,127.98,0.0563515]
[1765897545055,0.05895413,128.01,127.99,1.91217568]
[1765897545254,0.05895413,128.01,127.99,1.91201394]
[1765897545659,0.05895413,128.01,127.98,0.0563515]
[1765897546263,3.39895413,128.01,127.98,0.0563515]
[1765897546564,0.05895413,128.01,127.98,3.4063515]
[1765897546961,0.05895413,128.01,127.98,0.0563515]
[1765897548567,0.05895413,128.01,127.99,3.35]
[1765897548754,0.05895413,128.01,128.0,3.35]
[1765897550665,74.26432995,128.08,128.0,3.35]
[1765897550666,66.4,128.08,128.0,3.35]
[1765897550866,73.4285,128.08,128.02,1.91216784]
[1765897551062,76.7685,128.08,128.03,5.26216784]
[1765897551366,76.7685,128.08,128.03,3.35]
[1765897551565,76.7685,128.08,128.04,0.05359473]
[1765897551566,3.34,128.06,128.04,0.05359473]
[1765897552274,0.052715,128.07,128.04,3.40359473]
[1765897552459,0.052715,128.07,128.04,0.05359473]
[1765897552767,0.052715,128.07,128.04,3.40359473]
[1765897553356,0.002715,128.07,128.06,3.35]
[1765897553560,0.002715,128.07,128.06,4.91]
[1765897553970,0.002715,128.07,128.06,3.35]
[1765897555572,0.002715,128.07,128.06,4.91]
[1765897556168,0.002715,128.07,128.06,3.35]
[1765897558271,0.002715,128.07,128.06,4.91]
[1765897559162,0.002715,128.07,128.06,71.25]
[1765897559676,3.34,128.21,128.15,3.35]
[1765897559861,3.34,128.2,128.12,3.35]
[1765897560060,3.34,128.2,128.15,1.90060208]
[1765897560261,10.3631,128.18,128.14,1.90060208]
[1765897560464,3.34,128.18,128.14,1.90060208]
[1765897560665,0.0535478,128.17,128.16,1.90060208]
[1765897560866,0.05673893,128.18,128.15,3.40989292]
[1765897561280,0.05673893,128.18,128.15,0.05989292]
[1765897561578,0.05673893,128.18,128.17,3.35]
[1765897561775,0.05673893,128.18,128.15,3.40989292]
[1765897562079,0.05673893,128.18,128.16,1.89800793]
[1765897562272,0.05673893,128.18,128.17,3.35]
[1765897562471,69.68,128.25,128.19,7.0223]
[1765897562668,3.34,128.24,128.17,3.35]
[1765897562867,3.34,128.24,128.18,5.24451506]
[1765897563173,66.34,128.25,128.2,3.35]
[1765897563374,66.34,128.25,128.2,5.24451506]
[1765897563670,0.0571862,128.24,128.21,0.05253629]
[1765897564265,0.0571862,128.24,128.23,3.2]
[1765897564467,3.13,128.3,128.21,109.26883629]
[1765897564663,3.13,128.28,128.24,1.88498025]
[1765897564880,3.13,128.25,128.17,3.2]
[1765897565178,112.353,128.21,128.14,3.2]
[1765897565476,112.353,128.21,128.16,0.05476826]
[1765897565477,3.13,128.18,128.16,0.05476826]
[1765897565676,3.18478674,128.19,128.16,0.05476826]
[1765897566067,3.13,128.18,128.16,0.05476826]
[1765897566969,3.13,128.17,128.16,0.05476826]
[1765897567169,3.13,128.17,128.16,0.00476826]
[1765897567372,3.13,128.15,128.07,3.2]
[1765897567572,3.13,128.14,128.09,1.88923412]
[1765897567775,3.13,128.11,128.02,109.3792]
[1765897567980,3.13,128.11,128.06,1.89066614]
[1765897568181,3.13,128.09,128.06,1.89066614]
[1765897568475,0.0533756,128.09,128.07,1.89007772]